[Event "XIII Figueira da Foz Open 2019"]
[Site "Figueira da Foz"]
[Date "2019.11.01"]
[Round "7.18"]
[White "Goncalves, Lucas Jordao"]
[Black "Correia, Pedro Mourao Soares"]
[Result "1/2-1/2"]
[ECO "B01"]
[WhiteElo "1447"]
[BlackElo "1529"]
[Annotator "NA RC"]
[PlyCount "89"]
[EventDate "2019.10.27"]
[EventType "swiss"]
[EventCountry "POR"]
[SourceTitle "playchess.com"]
[Source "ChessBase"]
[SourceQuality "1"]
[TimeControl "40/5400+30:1800+30"]

1. e4 {[%emt 0:00:00]} d5 {[%emt 0:01:32]} 2. exd5 {[%emt 0:00:16]} Nf6 {[%emt 0:00:03]} 3. Nf3 {[%emt 0:00:26]} Nxd5 {[%emt 0:00:35]} 4. d4 {[%emt 0:00:09]} Bf5 {[%emt 0:01:11]} 5. c4 {[%emt 0:00:35]} Nb4 {[%emt 0:04:31]} 6. Qa4+ {[%emt 0:00:06]} N8c6 {[%emt 0:00:07]} 7. Na3 {[%emt 0:00:20]} e6 {[%emt 0:02:00]} 8. Be3 {[%emt 0:00:55]} Be7 {[%emt 0:08:36]} 9. Be2 {[%emt 0:00:24]} O-O {[%emt 0:03:11]} 10. O-O {[%emt 0:00:34]} a5 {[%emt 0:09:19]} 11. Rfd1 {[%emt 0:01:08]} Bf6 {[%emt 0:01:17]} 12. d5 {[%emt 0:03:24]} exd5 {[%emt 0:01:47]} 13. cxd5 {[%emt 0:00:06]} Nxd5 {[%emt 0:01:34]} 14. Bd4 {[%emt 0:01:38]} Nxd4 {[%emt 0:10:22]} 15. Nxd4 {[%emt 0:01:02]} Be6 {[%emt 0:06:27]} 16. Nxe6 {[%emt 0:05:55]} fxe6 {[%emt 0:00:51]} 17. Qc2 {[%emt 0:03:39]} Qe7 {[%emt 0:03:28]} 18. Nb5 {[%emt 0:02:58]} Qf7 {[%emt 0:03:47]} 19. Bf3 {[%emt 0:00:25]} c6 {[%emt 0:01:47]} 20. Nd6 Qd7 {[%emt 0:03:40]} 21. Nc4 {[%emt 0:01:26]} Qc7 {[%emt 0:04:41]} 22. Re1 {[%emt 0:01:03]} Nb4 {[%emt 0:02:17]} 23. Qe2 {[%emt 0:02:27]} Rae8 {[%emt 0:02:49]} 24. a3 {[%emt 0:00:31]} Nd5 {[%emt 0:01:32]} 25. Ne5 {[%emt 0:01:42]} Bxe5 {[%emt 0:03:35]} 26. Qxe5 {[%emt 0:00:23]} Qxe5 {[%emt 0:01:23]} 27. Rxe5 {[%emt 0:00:06]} Rf6 {[%emt 0:03:53]} 28. Rae1 {[%emt 0:00:16]} Kf7 {[%emt 0:00:44]} 29. Bxd5 {[%emt 0:01:06]} cxd5 {[%emt 0:00:47]} 30. R5e3 {[%emt 0:00:03]} Rc8 {[%emt 0:01:03]} 31. Rb3 {[%emt 0:00:08]} Rc7 {[%emt 0:01:04]} 32. Rb5 {[%emt 0:00:05]} Rf4 {[%emt 0:03:06]} 33. Rxa5 {[%emt 0:00:10]} Rc2 {[%emt 0:00:29]} 34. Rb5 {[%emt 0:00:34]} Rfxf2 {[%emt 0:00:43]} 35. Rxb7+ {[%emt 0:02:59]} Ke8 {[%emt 0:06:29]} 36. Rxe6+ {[%emt 0:02:44]} Kf8 {[%emt 0:00:47]} 37. Ra6 {[%emt 0:00:09]} Rxg2+ {[%emt 0:00:42]} 38. Kf1 {[%emt 0:00:05]} Rgf2+ {[%emt 0:03:25]} 39. Kg1 {[%emt 0:01:03]} Rg2+ {[%emt 0:00:24]} 40. Kf1 {[%emt 0:00:00]} Rcf2+ {[%emt 0:00:00]} 41. Ke1 {[%emt 0:00:19]} Re2+ {[%emt 0:00:49]} 42. Kf1 {[%emt 0:00:07]} Rgf2+ {[%emt 0:00:20]} 43. Kg1 {[%emt 0:00:07]} Rg2+ {[%emt 0:00:09]} 44. Kf1 {[%emt 0:00:04]} Rc2 45. Ra8+ {Rce2 Ra6} 1/2-1/2

[Event "XIII Figueira da Foz Open 2019"]
[Site "Figueira da Foz"]
[Date "2019.11.01"]
[Round "7.19"]
[White "Babo, Miguel"]
[Black "Dong, Rafael"]
[Result "1/2-1/2"]
[ECO "D04"]
[WhiteElo "1827"]
[BlackElo "1486"]
[Annotator "NA"]
[PlyCount "128"]
[EventDate "2019.10.27"]
[EventType "swiss"]
[EventCountry "POR"]
[SourceTitle "playchess.com"]
[Source "ChessBase"]
[SourceQuality "1"]
[TimeControl "40/5400+30:1800+30"]

1. d4 d5 2. Nf3 Nf6 3. e3 c6 4. Bd3 Bg4 5. Nbd2 Nbd7 6. h3 Bh5 {[%emt 0:00:59]} 7. Be2 {[%emt 0:05:13] D04: Colle System} (7. O-O e6 8. Qe1 Be7 9. Ne5 Nxe5 10. dxe5 Nd7 11. f4 Bg6 12. e4 O-O 13. exd5 cxd5 14. Bxg6 fxg6 15. Nb3 {0-1 (50) Jussupow,A (2582)-Jaracz,P (2465) Katowice 2017}) 7... e6 {[%emt 0:00:54]} 8. b3 {[%emt 0:01:17]} Bd6 {[%emt 0:00:48]} 9. Bb2 {[%emt 0:00:00]} O-O {[%emt 0:02:57]} 10. O-O {[%emt 0:03:04]} a5 $146 {[%emt 0:05:10]} ({Predecessor:} 10... Qb8 11. Ne1 Bxe2 12. Qxe2 e5 13. dxe5 Bxe5 14. Bxe5 Qxe5 {½-½ (28) Decrop,B (2177)-Hamblok,R (2305) Charleroi 2017}) 11. a4 {[%emt 0:04:25]} Qc7 {[%emt 0:01:08]} 12. c4 {[%emt 0:05:37]} Bg6 {[%emt 0:04:23]} 13. Rc1 {[%emt 0:04:44]} Ne4 {[%emt 0:01:09]} 14. Nxe4 {[%emt 0:00:30]} Bxe4 {[%emt 0:03:28]} 15. Nd2 {[%emt 0:04:22]} Bg6 {[%emt 0:00:27]} 16. Bf3 {[%emt 0:05:06]} Nf6 {[%emt 0:02:39]} 17. Re1 {[%emt 0:02:04]} Bb4 {[%emt 0:09:19]} 18. Bc3 {[%emt 0:01:14]} Ba3 {[%emt 0:00:30]} 19. Ra1 {[%emt 0:00:30]} Be7 $11 {[%emt 0:00:30]} 20. Be2 {[%emt 0:00:30]} Ne4 {[%emt 0:00:30]} 21. Nxe4 {[%emt 0:00:30]} Bxe4 {[%emt 0:00:30]} 22. Qd2 {[%emt 0:00:30]} Rfd8 {[%emt 0:00:30]} 23. Rec1 {[%emt 0:00:30]} b6 {[%emt 0:00:30]} 24. b4 {[%emt 0:00:30]} axb4 {[%emt 0:00:30]} 25. Bxb4 {[%emt 0:00:30]} c5 {[%emt 0:00:30]} 26. cxd5 {[%emt 0:00:30]} exd5 {[%emt 0:00:30]} 27. a5 {[%emt 0:00:30]} Qd7 {[%emt 0:00:30]} 28. dxc5 {[%emt 0:00:30]} bxc5 {[%emt 0:00:30]} 29. Bxc5 {[%emt 0:00:30]} Bxc5 {[%emt 0:00:30]} 30. Rxc5 {[%emt 0:00:30]} Qe7 {[%emt 0:00:30]} 31. Qd4 {[%emt 0:00:30]} Qg5 {[%emt 0:00:30]} 32. f3 {[%emt 0:00:30]} Bf5 {[%emt 0:00:30]} 33. Kh2 {[%emt 0:00:30]} Be6 {[%emt 0:00:30]} 34. Rd1 {[%emt 0:00:30]} h5 {[%emt 0:00:30]} 35. h4 {[%emt 0:00:30]} Qe7 {[%emt 0:00:30]} 36. Rdc1 {[%emt 0:00:30]} Qd6+ {[%emt 0:00:30]} 37. g3 {[%emt 0:00:30]} Qe7 {[%emt 0:00:30]} 38. Kg2 {[%emt 0:00:30]} f6 {[%emt 0:00:30]} 39. Bd3 {[%emt 0:00:30]} Bf7 {[%emt 0:00:30]} 40. Bf5 {[%emt 0:00:30]} Re8 {[%emt 0:00:30]} 41. Kf2 {[%emt 0:30:30]} Be6 {[%emt 0:30:30]} 42. Bg6 {[%emt 0:00:30]} Red8 {[%emt 0:00:30]} 43. Qd3 {[%emt 0:00:30]} Bf7 {[%emt 0:00:30]} 44. Bf5 {[%emt 0:00:30]} Qe5 {[%emt 0:00:30]} 45. Bh3 {[%emt 0:00:30]} Qb2+ {[%emt 0:34:10]} 46. R1c2 {[%emt 0:35:55]} Qb1 {[%emt 0:00:50]} 47. a6 Qh1 {[%emt 0:02:54]} 48. Qf1 {[%emt 0:07:40]} Qh2+ {[%emt 0:00:24]} 49. Bg2 Be6 50. Rc6 {[%emt 0:02:21]} Bh3 {[%emt 0:00:45]} 51. Qh1 {[%emt 0:00:42]} Qxh1 {[%emt 0:00:49]} 52. Bxh1 {[%emt 0:00:01]} Ra7 {[%emt 0:00:46]} 53. f4 {[%emt 0:00:34]} Bf5 {[%emt 0:01:58]} 54. Rd2 {[%emt 0:00:35]} Rad7 {[%emt 0:02:52]} 55. Bf3 {[%emt 0:01:09]} Be4 {[%emt 0:01:18]} 56. Bxe4 {[%emt 0:01:00]} dxe4 {[%emt 0:01:10]} 57. Rxd7 {[%emt 0:02:02]} Rxd7 {[%emt 0:00:04]} 58. Rb6 {[%emt 0:00:16]} Rd2+ {[%emt 0:00:46]} 59. Ke1 {[%emt 0:00:11]} Ra2 {[%emt 0:00:04]} 60. f5 {[%emt 0:00:45]} Kh7 {[%emt 0:00:55]} 61. Kd1 {[%emt 0:00:57]} Kh6 {[%emt 0:01:36]} 62. Kc1 {[%emt 0:00:27]} Kh7 {[%emt 0:00:04]} 63. Kb1 {[%emt 0:00:10]} Ra5 {[%emt 0:00:21]} 64. Kc2 {[%emt 0:00:50]} Ra1 {[%emt 0:00:18]} 1/2-1/2

[Event "XIII Figueira da Foz Open 2019"]
[Site "Figueira da Foz"]
[Date "2019.11.02"]
[Round "8.3"]
[White "Clarke, Brandon G I"]
[Black "Grigoryan, Karen H."]
[Result "0-1"]
[ECO "B32"]
[WhiteElo "2445"]
[BlackElo "2608"]
[Annotator "RC"]
[PlyCount "115"]
[EventDate "2019.10.27"]
[EventType "swiss"]
[EventCountry "POR"]
[SourceTitle "playchess.com"]
[Source "ChessBase"]
[SourceQuality "1"]
[TimeControl "40/5400+30:1800+30"]

1. e4 {[%emt 0:00:00]} c5 {[%emt 0:00:00]} 2. Nf3 {[%emt 0:00:00]} Nc6 {[%emt 0:00:00]} 3. d4 {[%emt 0:00:00]} cxd4 {[%emt 0:00:00]} 4. Nxd4 {[%emt 0:00:00]} Qb6 {[%emt 0:00:10]} 5. Nb3 {[%emt 0:00:04]} Nf6 {[%emt 0:00:48]} 6. Nc3 {[%emt 0:00:06]} e6 {[%emt 0:00:19]} 7. Qe2 {[%emt 0:00:06]} Qc7 {[%emt 0:00:41]} 8. g4 {[%emt 0:02:05]} d6 {[%emt 0:03:54]} 9. g5 {[%emt 0:00:49]} Nd7 {[%emt 0:00:07]} 10. Be3 {[%emt 0:03:25]} a6 {[%emt 0:00:22]} 11. O-O-O {[%emt 0:00:50]} b5 {[%emt 0:00:09]} 12. f4 {[%emt 0:00:38]} Nb6 {[%emt 0:05:55]} 13. h4 {[%emt 0:06:21]} Na4 {[%emt 0:06:32]} 14. Nxa4 {[%emt 0:05:42]} bxa4 {[%emt 0:00:16]} 15. Nd4 {[%emt 0:00:21]} a3 {[%emt 0:02:43]} 16. Qc4 {[%emt 0:00:41]} Bb7 {[%emt 0:12:07]} 17. f5 {[%emt 0:08:37]} e5 {[%emt 0:14:57]} 18. Nb3 {[%emt 0:00:41]} axb2+ {[%emt 0:01:00]} 19. Kb1 {[%emt 0:01:04]} a5 {[%emt 0:03:40]} 20. Qa4 {[%emt 0:00:50]} Be7 {[%emt 0:08:01]} 21. Rd3 {[%emt 0:06:10]} O-O {[%emt 0:06:30]} 22. Rc3 {[%emt 0:00:03]} Rfc8 {[%emt 0:05:43]} 23. Bb5 {[%emt 0:00:03]} Rab8 {[%emt 0:02:36]} 24. g6 {[%emt 0:23:22]} Ba8 {[%emt 0:01:10]} 25. a3 {[%emt 0:05:39]} Qb7 {[%emt 0:04:02]} 26. Bc4 {[%emt 0:00:04]} Nb4 {[%emt 0:03:19]} 27. gxf7+ {[%emt 0:26:02]} Kf8 {[%emt 0:00:19]} 28. Rg1 {[%emt 0:04:01]} Nxc2 {[%emt 0:04:27]} 29. Bh6 {[%emt 0:03:17]} Nxa3+ {[%emt 0:03:36]} 30. Qxa3 {[%emt 0:00:02]} Qxe4+ {[%emt 0:01:37]} 31. Kxb2 {[%emt 0:00:52]} d5 {[%emt 0:06:07]} 32. Rxg7 {[%emt 0:01:20]} Bxa3+ {[%emt 0:00:07]} 33. Kxa3 {[%emt 0:00:02]} Rb6 {[%emt 0:02:45]} 34. Bxd5 {[%emt 0:01:13]} Qb4+ {[%emt 0:00:48]} 35. Ka2 {[%emt 0:00:01]} Qxc3 {[%emt 0:00:42]} 36. Rg8+ {[%emt 0:02:41]} Ke7 {[%emt 0:00:04]} 37. Rxc8 {[%emt 0:00:32]} Qxc8 {[%emt 0:00:05]} 38. f8=Q+ {[%emt 0:00:12]} Qxf8 {[%emt 0:00:04]} 39. Bxf8+ {[%emt 0:00:05]} Kxf8 {[%emt 0:00:02]} 40. Bxa8 {[%emt 0:00:00]} Rh6 {[%emt 0:00:00]} 41. Nc5 {[%emt 0:02:31]} Ke7 {[%emt 0:14:43]} 42. Ne4 {[%emt 0:00:03]} Rxh4 {[%emt 0:00:36]} 43. Kb3 {[%emt 0:00:40]} Rf4 {[%emt 0:01:52]} 44. f6+ {[%emt 0:00:02]} Kf7 {[%emt 0:04:43]} 45. Kc4 {[%emt 0:04:14]} h5 {[%emt 0:01:58]} 46. Kd5 {[%emt 0:04:04]} Rxf6 {[%emt 0:00:18]} 47. Kxe5 {[%emt 0:01:55]} Ra6 {[%emt 0:00:20]} 48. Bb7 {[%emt 0:05:32]} Ra7 {[%emt 0:01:14]} 49. Kf5 {[%emt 0:00:41]} a4 {[%emt 0:01:59]} 50. Bd5+ {[%emt 0:00:34]} Kg7 {[%emt 0:01:24]} 51. Nc3 {[%emt 0:09:48]} a3 {[%emt 0:00:09]} 52. Ke5 {[%emt 0:00:50]} Ra5 {[%emt 0:00:57]} 53. Kd4 {[%emt 0:00:40]} h4 {[%emt 0:00:42]} 54. Be6 {[%emt 0:05:24]} Kf6 {[%emt 0:00:36]} 55. Bc8 {[%emt 0:00:03]} a2 {[%emt 0:00:52]} 56. Nxa2 {[%emt 0:00:19]} Rxa2 {[%emt 0:00:07]} 57. Ke4 {[%emt 0:00:07]} Ra3 {[%emt 0:00:20]} 58. Kd4 {Ke5+} 0-1

[Event "XIII Figueira da Foz Open 2019"]
[Site "Figueira da Foz"]
[Date "2019.11.02"]
[Round "8.4"]
[White "Spraggett, Kevin"]
[Black "Barski, Radoslaw"]
[Result "1/2-1/2"]
[ECO "C96"]
[WhiteElo "2513"]
[BlackElo "2437"]
[Annotator "RC"]
[PlyCount "112"]
[EventDate "2019.10.27"]
[EventType "swiss"]
[EventCountry "POR"]
[SourceTitle "playchess.com"]
[Source "ChessBase"]
[SourceQuality "1"]
[TimeControl "40/5400+30:1800+30"]

1. e4 {[%emt 0:05:49]} e5 {[%emt 0:00:11]} 2. Nf3 {[%emt 0:00:06]} Nc6 {[%emt 0:00:05]} 3. Bb5 {[%emt 0:00:18]} a6 {[%emt 0:00:10]} 4. Ba4 {[%emt 0:00:05]} Nf6 {[%emt 0:00:09]} 5. O-O {[%emt 0:00:07]} Be7 {[%emt 0:00:44]} 6. Re1 {[%emt 0:00:08]} b5 {[%emt 0:00:21]} 7. Bb3 {[%emt 0:00:06]} O-O {[%emt 0:07:07]} 8. c3 {[%emt 0:00:17]} d6 {[%emt 0:00:19]} 9. h3 {[%emt 0:00:28]} Na5 {[%emt 0:00:58]} 10. Bc2 {[%emt 0:00:11]} d5 {[%emt 0:00:03]} 11. d4 {[%emt 0:03:40]} dxe4 {[%emt 0:00:54]} 12. Nxe5 {[%emt 0:00:06]} Bb7 {[%emt 0:00:18]} 13. Nd2 {[%emt 0:09:31]} c5 {[%emt 0:01:44]} 14. Nxe4 {[%emt 0:02:50]} cxd4 {[%emt 0:44:31]} 15. cxd4 {[%emt 0:07:15]} Nxe4 {[%emt 0:03:00]} 16. Bxe4 {[%emt 0:00:08]} Bxe4 {[%emt 0:00:10]} 17. Rxe4 {[%emt 0:00:08]} Qd5 {[%emt 0:00:05]} 18. Re2 {[%emt 0:07:28]} Rad8 {[%emt 0:14:55]} 19. Nf3 {[%emt 0:05:12]} Bd6 {[%emt 0:04:22]} 20. b3 {[%emt 0:02:41]} Nc6 {[%emt 0:01:07]} 21. Bb2 {[%emt 0:00:39]} Ne7 {[%emt 0:03:43]} 22. Qd3 {[%emt 0:15:28]} Qh5 {[%emt 0:03:32]} 23. Rae1 {[%emt 0:02:38]} Nd5 {[%emt 0:00:20]} 24. Bc1 {[%emt 0:00:31]} f6 {[%emt 0:00:43]} 25. Bd2 {[%emt 0:00:48]} Qg6 {[%emt 0:00:58]} 26. Qxg6 {[%emt 0:02:35]} hxg6 {[%emt 0:00:05]} 27. g3 {[%emt 0:05:08]} Kf7 {[%emt 0:00:29]} 28. Ba5 {[%emt 0:03:16]} Rc8 {[%emt 0:00:36]} 29. Nd2 {[%emt 0:00:34]} Rc6 {[%emt 0:07:40]} 30. Ne4 {[%emt 0:00:25]} Ba3 {[%emt 0:00:04]} 31. h4 {[%emt 0:01:06]} Rfc8 {[%emt 0:00:34]} 32. Kf1 {[%emt 0:01:24]} Bf8 {[%emt 0:01:35]} 33. Bd2 {[%emt 0:07:05]} b4 {[%emt 0:00:15]} 34. Ra1 {[%emt 0:04:45]} Rc2 {[%emt 0:03:10]} 35. Ke1 {[%emt 0:00:22]} Be7 {[%emt 0:01:15]} 36. Kd1 {[%emt 0:03:56]} f5 {[%emt 0:01:11]} 37. Ng5+ {[%emt 0:00:47]} Bxg5 {[%emt 0:00:09]} 38. hxg5 {[%emt 0:01:11]} Rb2 {[%emt 0:00:49]} 39. Be1 {[%emt 0:01:02]} Rxe2 {[%emt 0:00:27]} 40. Kxe2 {[%emt 0:00:00]} Rc2+ {[%emt 0:00:00]} 41. Kd1 {[%emt 0:11:53]} Rc6 {[%emt 0:03:39]} 42. Rc1 {[%emt 0:01:07]} Rxc1+ {[%emt 0:03:06]} 43. Kxc1 {[%emt 0:00:02]} Ke6 {[%emt 0:00:09]} 44. Kc2 {[%emt 0:05:49]} Kd6 {[%emt 0:03:22]} 45. Kd3 {[%emt 0:00:26]} Kc6 {[%emt 0:01:03]} 46. Kc4 {[%emt 0:01:05]} a5 {[%emt 0:00:06]} 47. Bd2 {[%emt 0:00:16]} Nb6+ {[%emt 0:00:28]} 48. Kd3 {[%emt 0:00:06]} Nd5 {[%emt 0:11:27]} 49. Bf4 {[%emt 0:00:49]} Nc3 {[%emt 0:01:57]} 50. a3 {[%emt 0:01:46]} Kd5 {[%emt 0:00:19]} 51. axb4 {[%emt 0:06:22]} axb4 {[%emt 0:00:07]} 52. f3 {[%emt 0:00:31]} Nb5 {[%emt 0:02:10]} 53. Be5 {[%emt 0:00:16]} Na7 {[%emt 0:00:13]} 54. Bxg7 {[%emt 0:00:13]} Nc6 {[%emt 0:00:04]} 55. Be5 {[%emt 0:10:32]} Na5 {[%emt 0:01:52]} 56. Kc2 {[%emt 0:00:06]} Nc6 {[%emt 0:00:04]} 1/2-1/2

[Event "XIII Figueira da Foz Open 2019"]
[Site "Figueira da Foz"]
[Date "2019.11.02"]
[Round "8.8"]
[White "Medarde Santiago, Luis Marcos"]
[Black "Roettgen, Juergen"]
[Result "1-0"]
[ECO "B47"]
[WhiteElo "2285"]
[BlackElo "2157"]
[Annotator "RC"]
[PlyCount "113"]
[EventDate "2019.10.27"]
[EventType "swiss"]
[EventCountry "POR"]
[SourceTitle "playchess.com"]
[Source "ChessBase"]
[SourceQuality "1"]
[TimeControl "40/5400+30:1800+30"]

1. e4 {[%emt 0:00:00]} c5 {[%emt 0:00:00]} 2. Nf3 {[%emt 0:00:22]} e6 {[%emt 0:00:00]} 3. d4 {[%emt 0:00:05]} cxd4 {[%emt 0:00:00]} 4. Nxd4 {[%emt 0:00:02]} Nc6 {[%emt 0:00:00]} 5. Nc3 {[%emt 0:00:06]} Qc7 {[%emt 0:00:29]} 6. g3 {[%emt 0:00:06]} a6 {[%emt 0:00:24]} 7. Bg2 {[%emt 0:00:05]} d6 {[%emt 0:02:15]} 8. O-O {[%emt 0:00:05]} Bd7 {[%emt 0:00:19]} 9. Re1 {[%emt 0:00:23]} Be7 {[%emt 0:01:24]} 10. Nxc6 {[%emt 0:00:17]} bxc6 {[%emt 0:00:28]} 11. b3 {[%emt 0:00:12]} Nf6 {[%emt 0:02:35]} 12. e5 {[%emt 0:00:10]} dxe5 {[%emt 0:09:29]} 13. Bb2 {[%emt 0:03:28]} O-O {[%emt 0:11:13]} 14. Na4 {[%emt 0:00:38]} Rad8 {[%emt 0:08:54]} 15. Bxe5 {[%emt 0:05:06]} Qa7 {[%emt 0:13:39]} 16. Qd2 {[%emt 0:00:06]} c5 {[%emt 0:02:12]} 17. Qa5 {[%emt 0:03:19]} Bxa4 {[%emt 0:08:04]} 18. Qxa4 {[%emt 0:02:08]} Nd7 {[%emt 0:11:24]} 19. Bc3 {[%emt 0:03:42]} Bf6 {[%emt 0:02:57]} 20. Bxf6 {[%emt 0:06:31]} Nxf6 {[%emt 0:00:18]} 21. Qa5 {[%emt 0:00:38]} Rd6 {[%emt 0:11:06]} 22. Rad1 {[%emt 0:02:55]} Qb6 {[%emt 0:03:31]} 23. Qxb6 {[%emt 0:02:12]} Rxb6 {[%emt 0:00:02]} 24. Re5 {[%emt 0:00:01]} c4 {[%emt 0:01:59]} 25. Rc5 {[%emt 0:08:13]} cxb3 {[%emt 0:00:23]} 26. axb3 g6 {[%emt 0:01:06]} 27. h3 {[%emt 0:16:22]} h5 {[%emt 0:00:06]} 28. Rd4 {[%emt 0:00:11]} Rb5 {[%emt 0:03:55]} 29. Rdc4 {[%emt 0:04:09]} Rxc5 {[%emt 0:02:58]} 30. Rxc5 {[%emt 0:00:00]} Rd8 {[%emt 0:00:01]} 31. Kf1 {[%emt 0:05:19]} Rd6 {[%emt 0:00:39]} 32. Ke2 {[%emt 0:01:29]} Nd5 {[%emt 0:01:30]} 33. Bxd5 {[%emt 0:03:13]} exd5 {[%emt 0:00:01]} 34. Kd3 {[%emt 0:00:01]} Kf8 {[%emt 0:00:06]} 35. Kd4 {[%emt 0:01:22]} Rf6 {[%emt 0:00:15]} 36. Ke3 {[%emt 0:01:37]} Re6+ {[%emt 0:00:19]} 37. Kd3 {[%emt 0:13:07]} Rf6 {[%emt 0:01:33]} 38. f4 {[%emt 0:05:27]} h4 {[%emt 0:00:22]} 39. Ke3 {[%emt 0:00:06]} hxg3 {[%emt 0:00:15]} 40. Rxd5 {[%emt 0:00:00]} g2 {[%emt 0:00:00]} 41. Rg5 {[%emt 0:00:32]} Rc6 {[%emt 0:01:12]} 42. Rxg2 {[%emt 0:00:41]} Rc3+ {[%emt 0:01:27]} 43. Kd4 {[%emt 0:04:45]} Rxh3 {[%emt 0:00:10]} 44. Kc5 {[%emt 0:03:50]} Rf3 {[%emt 0:04:57]} 45. Kb6 {[%emt 0:00:05]} Rxf4 {[%emt 0:00:08]} 46. Kxa6 {[%emt 0:00:05]} Rf6+ {[%emt 0:04:22]} 47. Kb7 {[%emt 0:01:33]} Re6 {[%emt 0:01:04]} 48. c4 {[%emt 0:02:52]} f5 {[%emt 0:08:11]} 49. c5 {[%emt 0:00:25]} Re3 {[%emt 0:02:31]} 50. Rxg6 {[%emt 0:12:27]} Kf7 {[%emt 0:01:25]} 51. Rb6 {[%emt 0:01:46]} f4 {[%emt 0:04:06]} 52. Rb4 {[%emt 0:00:46]} f3 {[%emt 0:01:24]} 53. c6 {[%emt 0:02:15]} Kg6 {[%emt 0:00:59]} 54. c7 {[%emt 0:03:05]} f2 {[%emt 0:00:42]} 55. c8=Q {[%emt 0:02:07]} Re7+ {[%emt 0:00:47]} 56. Kc6 {[%emt 0:00:46]} f1=Q {[%emt 0:00:11]} 57. Qg4+ {[%emt 0:01:52]} 1-0

[Event "XIII Figueira da Foz Open 2019"]
[Site "Figueira da Foz"]
[Date "2019.11.02"]
[Round "8.13"]
[White "Gama, Joao Goncalo Cerejei"]
[Black "Adams, Philip"]
[Result "0-1"]
[ECO "B03"]
[WhiteElo "1712"]
[BlackElo "1993"]
[Annotator "NA RC"]
[PlyCount "98"]
[EventDate "2019.10.27"]
[EventType "swiss"]
[EventCountry "POR"]
[SourceTitle "playchess.com"]
[Source "ChessBase"]
[SourceQuality "1"]
[TimeControl "40/5400+30:1800+30"]

1. e4 Nf6 {[%emt 0:00:28]} 2. e5 {[%emt 0:00:00]} Nd5 {[%emt 0:00:04]} 3. d4 {[%emt 0:00:05]} d6 {[%emt 0:00:00]} 4. exd6 {[%emt 0:01:15]} cxd6 {[%emt 0:00:48]} 5. c4 {[%emt 0:00:30]} Nb6 {[%emt 0:00:30]} 6. Nc3 {[%emt 0:02:35]} g6 {[%emt 0:00:00]} 7. Bd3 {[%emt 0:00:30]} Bg7 {[%emt 0:00:11]} 8. Nge2 {[%emt 0:00:30]} O-O {[%emt 0:00:30]} 9. O-O {[%emt 0:00:30]} Nc6 {[%emt 0:00:30]} 10. c5 {[%emt 0:00:30]} dxc5 {[%emt 0:00:30]} 11. dxc5 {[%emt 0:00:30]} Nd7 {[%emt 0:00:30]} 12. Be3 {[%emt 0:00:30]} Nce5 {[%emt 0:00:30]} 13. Rc1 {[%emt 0:00:30]} Ng4 {[%emt 0:00:30]} 14. Nd5 {[%emt 0:34:31]} e6 {[%emt 0:44:44]} 15. Ndf4 {[%emt 0:00:30]} Nxe3 {[%emt 0:01:04]} 16. fxe3 {[%emt 0:00:06]} Bxb2 {[%emt 0:01:10]} 17. Rb1 {[%emt 0:05:28]} Bg7 18. Qc2 {[%emt 0:08:25]} Ne5 {[%emt 0:05:03]} 19. h3 {[%emt 0:02:59]} Qc7 {[%emt 0:06:41]} 20. Nd4 {[%emt 0:00:16]} Nxd3 {[%emt 0:07:44]} 21. Nxd3 {[%emt 0:11:43]} a6 {[%emt 0:03:20]} 22. Rbc1 {[%emt 0:00:30]} e5 {[%emt 0:06:54]} 23. Nb3 {[%emt 0:04:58]} a5 {[%emt 0:06:41]} 24. Nd2 {[%emt 0:00:30]} Bd7 {[%emt 0:01:01]} 25. Ne4 {[%emt 0:02:03]} Bc6 {[%emt 0:02:07]} 26. Nf6+ {[%emt 0:03:21]} (26. Qf2 $2 {[%emt 0:03:21][%mdl 8192]}) (26. Nd6 $17) 26... Kh8 $17 {[%emt 0:04:52]} 27. Qf2 {[%emt 0:01:20]} Bb5 28. Qh4 {[%emt 0:05:40]} h6 {[%emt 0:01:28]} 29. Qe4 {[%emt 0:00:30]} Qd8 {[%emt 0:03:22]} 30. Rcd1 {[%emt 0:06:20]} Bxf6 {[%emt 0:02:52]} 31. Nf4 {[%emt 0:01:28]} Qe8 32. Nd5 {[%emt 0:00:46]} Bg7 {[%emt 0:00:55]} 33. Nc7 {[%emt 0:00:07]} Qc6 {[%emt 0:00:48]} 34. Qxc6 {[%emt 0:00:10]} bxc6 {[%emt 0:00:07]} 35. Nxa8 {[%emt 0:00:25]} Bxf1 {[%emt 0:00:07]} 36. Rxf1 {[%emt 0:00:22]} Rxa8 {[%emt 0:00:20]} 37. Rxf7 {[%emt 0:00:07]} Bf8 {[%emt 0:00:32]} 38. Rc7 {[%emt 0:01:29]} Bxc5 {[%emt 0:00:22]} 39. Rxc6 {[%emt 0:00:03]} Bxe3+ {[%emt 0:00:00]} 40. Kf1 {[%emt 0:00:00]} Kg7 41. Ke2 {[%emt 0:00:36]} Bd4 {[%emt 0:02:21]} 42. Kd3 a4 43. Kc4 {[%emt 0:01:04]} a3 {[%emt 0:04:01]} 44. Kd5 {[%emt 0:00:05]} Rf8 {[%emt 0:02:41]} 45. Ra6 {[%emt 0:00:24]} Bb2 {[%emt 0:00:50]} 46. g4 {[%emt 0:00:43]} g5 {[%emt 0:00:18]} 47. Ra7+ Rf7 {[%emt 0:00:06]} 48. Rxf7+ {[%emt 0:00:39]} Kxf7 {[%emt 0:00:05]} 49. Ke4 Ke6 {Kd4} 0-1

[Event "XIII Figueira da Foz Open 2019"]
[Site "Figueira da Foz"]
[Date "2019.11.02"]
[Round "8.15"]
[White "Pintor, Simao Maciel Abranch"]
[Black "Dong, Fabio"]
[Result "1-0"]
[ECO "A06"]
[WhiteElo "2137"]
[BlackElo "1410"]
[Annotator "RC"]
[PlyCount "71"]
[EventDate "2019.10.27"]
[EventType "swiss"]
[EventCountry "POR"]
[SourceTitle "playchess.com"]
[Source "ChessBase"]
[SourceQuality "1"]
[TimeControl "40/5400+30:1800+30"]

1. Nf3 d5 2. g3 Nf6 3. Bg2 Bf5 4. b3 e6 5. Bb2 Be7 6. O-O O-O 7. d3 c6 8. Nbd2 h6 9. Qe1 Nbd7 10. e4 dxe4 11. dxe4 Bh7 12. Qe2 Qc7 13. e5 Nd5 14. Ne4 Nc5 15. Nfd2 Nxe4 16. Nxe4 Rfd8 17. Rad1 Bxe4 18. Bxe4 a5 19. c4 Nb6 20. h4 a4 21. Bb1 Rxd1 22. Rxd1 Rd8 23. h5 Rxd1+ 24. Qxd1 Qd8 25. Qc2 f5 26. exf6 Bxf6 27. Ba3 Be7 28. Qh7+ Kf8 29. Bxe7+ Qxe7 30. Bg6 Qf6 31. Qh8+ Ke7 32. c5 Qa1+ 33. Kg2 Nd5 34. Qe8+ Kf6 35. Qf7+ Kg5 36. f4+ 1-0